fUSD/lending_fUSD_20260413
["ID","MTS","AMOUNT","RATE_DAILY","PERIOD"]
[420353775,1776017357530,-151.0,0.00010694,2]
[420353776,1776017357574,-500.0,0.00010694,2]
[420353777,1776017357613,-151.0,0.00010694,2]
[420353778,1776017357645,-500.0,0.00010694,2]
[420353779,1776017357670,-151.0,0.00010694,2]
[420353780,1776017357697,-500.0,0.00010694,2]
[420353781,1776017357722,-151.0,0.00010694,2]
[420353782,1776017357750,-500.0,0.00010694,2]
[420353783,1776017357774,-151.0,0.00010694,2]
[420353784,1776017357797,-500.0,0.00010694,2]
[420353785,1776017357823,-151.0,0.00010694,2]
[420353786,1776017357853,-500.0,0.00010694,2]
[420353787,1776017357884,-151.0,0.00010694,2]
[420353788,1776017357905,-500.0,0.00010694,2]
[420353789,1776017357941,-151.0,0.00010694,2]
[420353790,1776017357967,-500.0,0.00010694,2]
[420353791,1776017357989,-151.0,0.00010694,2]
[420353792,1776017358010,-500.0,0.00010694,2]
[420353793,1776017358035,-151.0,0.00010694,2]
[420353794,1776017358058,-151.0,0.00010694,2]
[420353795,1776017358078,-500.0,0.00010694,2]
[420353796,1776017358103,-1100.0,0.00010698,2]
[420353797,1776017358124,-500.0,0.00010699,2]
[420353798,1776017358156,-337.10035609,0.00010699,2]
[420353799,1776017358179,-252.73801598,0.00010699,2]
[420353800,1776017358205,-500.0,0.00010699,2]
[420353801,1776017358239,-500.0,0.00010699,2]
[420353802,1776017358272,-500.0,0.00010699,2]
[420353803,1776017358313,-500.0,0.00010699,2]
[420353804,1776017358361,-500.0,0.00010699,2]
[420353805,1776017358410,-595.00173854,0.00010699,2]
[420353806,1776017358463,-500.0,0.00010699,2]
[420353807,1776017358504,-500.0,0.00010699,2]
[420353808,1776017358546,-500.0,0.00010699,2]
[420353809,1776017358625,-399.44463761,0.00010699,2]
[420353810,1776017358664,-500.0,0.00010699,2]
[420353811,1776017358704,-38470.41155178,0.000107,2]
[420353812,1776017361109,-39189.6904,0.000107,2]
[420353813,1776017366229,-66183.39252,0.000107,2]
[420353814,1776017368125,-8695.696996,0.000107,2]
[420353820,1776017432380,-835.08194218,0.000106,2]
[420353821,1776017432394,-224.0222514,0.000106,2]
[420353822,1776017432406,-154.80708216,0.0001069,2]
[420353823,1776017432418,-35.80586789,0.0001069,2]
[420353824,1776017432428,-500.0,0.00010699,2]
[420353825,1776017432441,-500.0,0.00010699,2]
[420353826,1776017432453,-328.68867483,0.00010699,2]
[420353827,1776017432636,-171.31132517,0.00010699,2]
[420353828,1776017432647,-561.18867483,0.00010699,2]
[420353829,1776017432673,-401.62118215,0.00010699,2]
[420353830,1776017432696,-237.19014302,0.00010699,2]
[420353831,1776017432716,-142.80985698,0.00010699,2]
[420353832,1776017432744,-357.19014302,0.00010699,2]
[420353833,1776017432753,-219891.59376849,0.000107,2]
[420353834,1776017432767,-45240.876854,0.000107,2]
[420353835,1776017432784,-51982.3663531,0.000107,2]
[420353837,1776017438598,-500.0,0.00010699,2]
[420353838,1776017438609,-25236.64069466,0.000107,2]
[420353839,1776017438675,-7904.62537552,0.000107,2]
[420353840,1776017438866,-1662.67,0.000107,2]
[420353841,1776017438882,-226450.1207259,0.000107,2]
[420353860,1776017441025,-24104.6103854,0.000107,2]
[420353861,1776017441163,-1211.0,0.000107,2]
[420353862,1776017441178,-3985.64868856,0.000107,2]
[420353863,1776017441341,-19.92009529,0.000107,2]
[420353864,1776017441365,-412.0,0.000107,2]
[420353865,1776017441409,-564.20093203,0.000107,2]
[420353866,1776017441460,-963.42602351,0.000107,2]
[420353867,1776017441537,-1651.76684254,0.000107,2]
[420353903,1776017443407,-6767.32040939,0.000107,2]
[420353908,1776017443539,-3814.29069314,0.000107,2]
[420353919,1776017446503,-266.180693,0.000107,2]
[420353920,1776017446526,-108205.09322109,0.000107,2]
[420353921,1776017446716,-2070.0,0.000107,2]
[420353922,1776017446728,-20100.22222643,0.000107,2]
[420353942,1776017506242,706.0,0.0003013,120]
[420353943,1776017508287,316.0,0.0003013,120]
[420353944,1776017509053,184.0,0.0003013,120]
[420353945,1776017561350,706.38224492,0.0003013,120]
[420353946,1776017563698,426.0,0.0003013,120]
[420353950,1776017903498,500.0,0.0003013,120]
[420353952,1776017981396,1186.0,0.0003013,120]
[420353953,1776017982312,1539.0,0.0003013,120]
[420353954,1776017983118,269.0,0.0003013,120]
[420353955,1776017983918,818.0,0.0003013,120]
[420353956,1776017985962,482.0,0.0003013,120]
[420353957,1776018046540,1265.0,0.0003013,120]
[420353958,1776018047403,1271.0,0.0003013,120]
[420353960,1776018553546,-169.85754937,0.000106,2]
[420353961,1776018553894,-505.4817022,0.000106,2]
[420353962,1776018553942,-108.45483083,0.000106,2]
[420353964,1776018557076,-173.9139066,0.00010672,2]
[420353965,1776018567694,-1026.0860934,0.00010672,2]
[420353966,1776018567718,-167.88230762,0.00010673,2]
[420353967,1776018567763,-129.69907698,0.00010673,2]
[420353968,1776018570112,-370.79719349,0.00010673,2]
[420353969,1776018570148,-500.0,0.00010673,2]
[420353970,1776018570172,-190.61295005,0.0001069,2]
[420353971,1776018570233,-59.94339046,0.00010693,2]
[420353976,1776018631703,-1060.14397087,0.00010685,2]
[420353977,1776018631729,-4247.49169896,0.00010685,2]
[420353978,1776018631757,-404.38433017,0.00010685,2]
[420353979,1776018631768,-219.0,0.00010685,2]
[420353980,1776018631777,-185.28494406,0.0001069,2]
[420353981,1776018631787,-1200.0,0.00010693,2]
[420353982,1776018631801,-150.0,0.00010693,2]
[420353983,1776018631813,-289.0,0.00010693,2]
[420353984,1776018631823,-500.0,0.00010694,2]
[420353985,1776018631833,-151.0,0.00010694,2]
[420353986,1776018631847,-500.0,0.00010694,2]
[420353987,1776018631857,-151.0,0.00010694,2]
[420353988,1776018631867,-295.51664746,0.00010694,2]
[420353989,1776018631876,-151.0,0.00010694,2]
[420353990,1776018631886,-151.0,0.00010694,2]
[420353991,1776018631899,-151.0,0.00010694,2]
[420353992,1776018631908,-151.0,0.00010694,2]
[420353993,1776018631918,-151.0,0.00010694,2]
[420353994,1776018631934,-151.0,0.00010694,2]
[420353995,1776018631943,-151.0,0.00010694,2]
[420353996,1776018631953,-151.0,0.00010694,2]
[420353997,1776018631963,-151.0,0.00010694,2]
[420353998,1776018631975,-151.0,0.00010694,2]
[420353999,1776018631986,-151.0,0.00010694,2]
[420354000,1776018631996,-151.0,0.00010694,2]
[420354001,1776018632006,-151.0,0.00010694,2]
[420354002,1776018632019,-151.0,0.00010694,2]
[420354003,1776018632031,-151.0,0.00010694,2]
[420354004,1776018632041,-151.0,0.00010694,2]
[420354005,1776018632057,-151.0,0.00010694,2]
[420354006,1776018632068,-151.0,0.00010694,2]
[420354007,1776018632079,-151.0,0.00010694,2]
[420354008,1776018632090,-151.0,0.00010694,2]
[420354009,1776018632105,-500.0,0.00010694,2]
[420354010,1776018632116,-500.0,0.00010694,2]
[420354011,1776018632126,-500.0,0.00010694,2]
[420354013,1776018632487,-500.0,0.00010694,2]
[420354015,1776018632497,-500.0,0.00010694,2]
[420354016,1776018632513,-500.0,0.00010694,2]
[420354018,1776018632526,-500.0,0.00010699,2]
[420354020,1776018632547,-585.97024927,0.00010699,2]
[420354021,1776018632562,-500.0,0.00010699,2]
[420354022,1776018632575,-500.0,0.00010699,2]
[420354023,1776018632585,-500.0,0.00010699,2]
[420354024,1776018632596,-500.0,0.00010699,2]
[420354025,1776018632611,-500.0,0.00010699,2]
[420354026,1776018632623,-500.0,0.00010699,2]
[420354027,1776018632633,-500.0,0.00010699,2]
[420354028,1776018632644,-500.0,0.00010699,2]
[420354029,1776018632660,-500.0,0.00010699,2]
[420354030,1776018632669,-500.0,0.00010699,2]
[420354031,1776018632679,-500.0,0.00010699,2]
[420354032,1776018632691,-500.0,0.00010699,2]
[420354033,1776018632704,-151.53513428,0.00010699,2]
[420354034,1776018632714,-500.0,0.00010699,2]
[420354035,1776018632723,-500.0,0.00010699,2]
[420354036,1776018632740,-500.0,0.00010699,2]
[420354038,1776018632750,-500.0,0.00010699,2]
[420354040,1776018632759,-483.36103957,0.00010699,2]
[420354042,1776018632776,-500.0,0.00010699,2]
[420354044,1776018632786,-500.0,0.00010699,2]
[420354046,1776018632814,-500.0,0.00010699,2]
[420354048,1776018632825,-500.0,0.00010699,2]
[420354049,1776018632840,-500.0,0.00010699,2]
[420354051,1776018632857,-500.0,0.00010699,2]
[420354053,1776018632866,-500.0,0.00010699,2]
[420354054,1776018632882,-500.0,0.00010699,2]
[420354055,1776018632915,-500.0,0.00010699,2]
[420354056,1776018632946,-500.0,0.00010699,2]
[420354057,1776018632956,-260.0446732,0.00010699,2]
[420354058,1776018632965,-500.0,0.00010699,2]
[420354059,1776018633015,-587.46472006,0.00010699,2]
[420354060,1776018633031,-500.0,0.00010699,2]
[420354061,1776018633049,-555.02254987,0.00010699,2]
[420354062,1776018633063,-500.0,0.00010699,2]
[420354063,1776018633087,-500.0,0.00010699,2]
[420354064,1776018633113,-235.224,0.00010699,2]
[420354065,1776018633122,-1913.773,0.00010699,2]
[420354066,1776018633138,-500.0,0.00010699,2]
[420354067,1776018633152,-500.0,0.00010699,2]
[420354068,1776018633162,-500.0,0.00010699,2]
[420354069,1776018633174,-500.0,0.00010699,2]
[420354070,1776018633209,-500.0,0.00010699,2]
[420354071,1776018633218,-500.0,0.00010699,2]
[420354072,1776018633231,-500.0,0.00010699,2]
[420354073,1776018633249,-500.0,0.00010699,2]
[420354074,1776018633258,-150.0,0.00010699,2]
[420354075,1776018633269,-500.0,0.00010699,2]
[420354076,1776018633294,-500.0,0.00010699,2]
[420354077,1776018633304,-500.0,0.00010699,2]
[420354078,1776018633313,-384.7463506,0.00010699,2]
[420354079,1776018633333,-159181.62771507,0.000107,2]
[420354080,1776018634172,-32368.89255256,0.000107,2]
[420354081,1776018634205,-4257.94471494,0.000107,2]
[420354082,1776018634218,-1668.97568377,0.000107,2]
[420354083,1776018634238,-21967.62055404,0.000107,2]
[420354084,1776018634273,-1405.13503512,0.000107,2]
[420354085,1776018634286,-16877.55348723,0.000107,2]
[420354086,1776018634359,-1804.06328209,0.000107,2]
[420354087,1776018634370,-347.43508066,0.000107,2]
[420354088,1776018634394,-900.10494811,0.000107,2]
[420354089,1776018634489,-505.16138692,0.000107,2]
[420354090,1776018634558,-27344.10912209,0.000107,2]
[420354093,1776018638105,-20470.47509904,0.000107,2]
[420354100,1776018640735,-53949.5672299,0.000107,2]
[420354101,1776018640754,-94862.17846005,0.000107,2]
[420354102,1776018640819,-342.26322073,0.000107,2]
[420354103,1776018640850,-450.9,0.000107,2]
[420354118,1776018643081,-29674.71975893,0.000107,2]
[420354122,1776018645790,-5289.91534328,0.000107,2]
[420354123,1776018645811,-2843.95990817,0.000107,2]
[420354124,1776018645827,-450.0,0.000107,2]
[420354125,1776018645867,-1104.76011961,0.000107,2]
[420354126,1776018646010,-294405.82646616,0.000107,2]
[420354142,1776018829199,599.54218238,0.00030136,120]
[420354143,1776018993282,467.96,5.29e-05,2]
[420354144,1776018993485,467.96,5.569e-05,2]
[420354145,1776018993792,467.96,5.847e-05,2]
[420354146,1776018993956,467.96,6.126e-05,2]
[420354147,1776018994142,467.96,6.404e-05,2]
[420354148,1776018994339,467.96,6.683e-05,2]
[420354149,1776018994992,467.96,6.961e-05,2]
[420354150,1776018995157,467.96,7.239e-05,2]
[420354151,1776018995220,467.96,7.518e-05,2]
[420354152,1776018995392,467.96,7.796e-05,2]
[420354153,1776018995601,467.96,8.075e-05,2]
[420354154,1776018995777,467.96,8.353e-05,2]
[420354158,1776019531751,838.462226,8.178e-05,2]
[420354159,1776019746613,-300.0,8.586e-05,2]
[420354160,1776019746649,-250.0,8.586e-05,2]
[420354161,1776019746680,-300.0,8.587e-05,2]
[420354162,1776019746713,-1200.0,8.587e-05,2]
[420354163,1776019746738,-300.0,8.587e-05,2]
[420354164,1776019746765,-6171.84058404,8.588e-05,2]
[420354165,1776019752376,-1104.0,8.587e-05,2]
[420354166,1776019752421,-1425.88631596,8.588e-05,2]
[420354167,1776019752453,-3116.27531548,8.588e-05,2]
[420354168,1776019752484,-467.96,8.632e-05,2]
[420354169,1776019752511,-1500.0,8.708e-05,2]
[420354170,1776019752552,-467.96,8.91e-05,2]
[420354171,1776019752586,-1871.27,8.923e-05,2]
[420354172,1776019752622,-3798.8634,9.018e-05,2]
[420354173,1776019752663,-500.0,9.073e-05,2]
[420354174,1776019752688,-500.0,9.073e-05,2]
[420354175,1776019752711,-500.0,9.073e-05,2]
[420354176,1776019752741,-500.16405392,9.073e-05,2]
[420354177,1776019752761,-500.70850906,9.073e-05,2]
[420354178,1776019752787,-150.0,9.092e-05,2]
[420354179,1776019752807,-18568.8133097,9.093e-05,2]
[420354180,1776019767252,-66183.05344,9.093e-05,2]
[420354181,1776019772277,-28088.7432503,9.093e-05,2]
[420354182,1776019772305,-280.0,9.093e-05,2]
[420354183,1776019772339,-500.0,9.167e-05,2]
[420354184,1776019772368,-467.96,9.189e-05,2]
[420354185,1776019772400,-462.27,9.301e-05,2]
[420354186,1776019772435,-5126.72612859,9.445e-05,2]
[420354187,1776019772479,-250.0,9.445e-05,2]
[420354188,1776019772508,-325.93545806,9.445e-05,2]
[420354189,1776019832054,-753.84956645,9.444e-05,2]
[420354190,1776019832066,-446.15043355,9.444e-05,2]
[420354191,1776019832082,-300.0,9.444e-05,2]
[420354192,1776019832097,-300.0,9.444e-05,2]
[420354193,1776019832106,-200.32956645,9.444e-05,2]
[420354194,1776019832126,-49.67043355,9.444e-05,2]
[420354195,1776019832143,-174.06454194,9.445e-05,2]
[420354196,1776019832153,-276.26502451,9.445e-05,2]
[420354197,1776019832186,-221.51830543,9.445e-05,2]
[420354198,1776019832196,-500.0,9.445e-05,2]
[420354199,1776019832209,-500.0,9.445e-05,2]
[420354200,1776019832223,-278.84169457,9.445e-05,2]
[420354201,1776019832256,-221.15830543,9.445e-05,2]
[420354202,1776019832268,-500.0,9.445e-05,2]
[420354203,1776019832278,-500.0,9.445e-05,2]
[420354204,1776019832291,-500.0,9.445e-05,2]
[420354205,1776019832305,-500.0,9.445e-05,2]
[420354207,1776019832316,-500.0,9.445e-05,2]
[420354208,1776019832327,-500.0,9.445e-05,2]
[420354209,1776019832341,-500.0,9.445e-05,2]
[420354210,1776019832351,-418.52065056,9.445e-05,2]
[420354211,1776019832362,-500.0,9.445e-05,2]
[420354212,1776019832385,-500.0,9.445e-05,2]
[420354213,1776019832395,-500.0,9.445e-05,2]
[420354214,1776019832413,-500.0,9.445e-05,2]
[420354215,1776019832426,-500.0,9.445e-05,2]
[420354216,1776019832435,-500.0,9.445e-05,2]
[420354217,1776019832448,-500.0,9.445e-05,2]
[420354218,1776019832469,-500.0,9.445e-05,2]
[420354219,1776019832478,-500.0,9.445e-05,2]
[420354220,1776019832488,-500.0,9.445e-05,2]
[420354221,1776019832504,-500.0,9.445e-05,2]
[420354222,1776019832520,-323.18637105,9.445e-05,2]
[420354223,1776019832530,-500.0,9.445e-05,2]
[420354224,1776019832549,-500.0,9.445e-05,2]
[420354225,1776019832586,-500.0,9.445e-05,2]
[420354226,1776019832600,-500.0,9.445e-05,2]
[420354227,1776019832611,-500.0,9.445e-05,2]
[420354228,1776019832626,-500.0,9.445e-05,2]
[420354229,1776019832635,-500.0,9.445e-05,2]
[420354230,1776019832654,-500.0,9.445e-05,2]
[420354231,1776019832665,-500.0,9.445e-05,2]
[420354232,1776019832674,-500.0,9.445e-05,2]
[420354233,1776019832697,-500.0,9.445e-05,2]
[420354234,1776019832706,-500.0,9.445e-05,2]
[420354235,1776019832735,-500.0,9.445e-05,2]
[420354236,1776019832767,-500.0,9.445e-05,2]
[420354237,1776019832791,-500.0,9.445e-05,2]
[420354238,1776019832802,-382.3186371,9.445e-05,2]
[420354239,1776019832826,-250.0,9.445e-05,2]
[420354240,1776019832835,-420.0,9.445e-05,2]
[420354241,1776019832844,-5000.0,9.446e-05,2]
[420354242,1776019832862,-179.14916869,9.446e-05,2]
[420354243,1776019832878,-1746.48,9.447e-05,2]
[420354244,1776019832886,-193.0,9.447e-05,2]
[420354245,1776019832897,-467.96,9.467e-05,2]
[420354246,1776019832906,-150.0,9.5e-05,2]
[420354247,1776019832922,-500.0,9.719e-05,2]
[420354248,1776019832931,-467.96,9.745e-05,2]
[420354249,1776019832941,-1266.2878,9.876e-05,2]
[420354250,1776019832955,-151.0,0.0001,2]
[420354251,1776019832973,-500.0,0.0001,2]
[420354252,1776019832983,-500.0,0.0001,2]
[420354253,1776019832993,-1119.46986332,0.0001,2]
[420354254,1776019833011,-153.62606031,0.0001,2]
[420354255,1776019833023,-153.62606031,0.0001,2]
[420354256,1776019833032,-255.0,0.00010001,2]
[420354257,1776019833049,-467.96,0.00010024,2]
[420354258,1776019833073,-467.96,0.00010302,2]
[420354259,1776019833086,-381.0,0.00010388,2]
[420354260,1776019833106,-1680.0,0.00010388,2]
[420354261,1776019833117,-250.0,0.00010388,2]
[420354262,1776019833129,-500.0,0.00010473,2]
[420354263,1776019833145,-500.0,0.00010473,2]
[420354264,1776019833159,-500.0,0.00010473,2]
[420354265,1776019833172,-167.74095736,0.00010473,2]
[420354266,1776019833186,-361.99148442,0.00010474,2]
[420354267,1776019833212,-304.45492388,0.00010474,2]
[420354268,1776019833222,-500.0,0.00010474,2]
[420354269,1776019833235,-450.0,0.00010474,2]
[420354270,1776019833252,-587.64777311,0.00010474,2]
[420354271,1776019833261,-500.0,0.00010474,2]
[420354272,1776019833273,-500.0,0.00010474,2]
[420354273,1776019833288,-369.32244542,0.00010474,2]
[420354274,1776019833298,-3001.82,0.00010475,2]
[420354275,1776019833307,-172536.87320016,0.00010475,2]
[420354278,1776019838035,-25829.59679984,0.00010475,2]
[420354280,1776019838446,-7179.17,0.00010475,2]
[420354281,1776019838509,-299.99,0.00010475,2]
[420354282,1776019838519,-13221.55148349,0.00010475,2]
[420354283,1776019838534,-1170.75638054,0.00010475,2]
[420354284,1776019838566,-265.65805523,0.00010475,2]
[420354285,1776019838587,-10342.02408074,0.00010475,2]
[420354286,1776019838601,-2460.72,0.00010475,2]
[420354288,1776019838612,-9999.99,0.00010475,2]
[420354290,1776019838623,-9999.99,0.00010475,2]
[420354291,1776019838633,-999.99,0.00010475,2]
[420354292,1776019838642,-641.28303926,0.00010475,2]
[420354293,1776019838663,-355.60088284,0.00010475,2]
[420354296,1776019840085,-4952.5360779,0.00010475,2]
[420354297,1776019840095,-2769.41245843,0.00010475,2]
[420354298,1776019840288,-1261.34754157,0.00010475,2]
[420354299,1776019840309,-9999.99,0.00010475,2]
[420354300,1776019840321,-9999.99,0.00010475,2]
[420354301,1776019840337,-6336.79,0.00010475,2]
[420354302,1776019840373,-351.72,0.00010475,2]
[420354303,1776019840404,-23435.79,0.00010475,2]
[420354304,1776019840422,-2907.46,0.00010475,2]
[420354305,1776019840452,-150.99,0.00010475,2]
[420354306,1776019840464,-467.96,0.00010581,2]
[420354307,1776019840474,-336.98780146,0.000106,2]
[420354308,1776019840496,-169.85754937,0.000106,2]
[420354309,1776019840517,-84125.0318063,0.000107,2]
[420354310,1776019840537,-10874.03214022,0.000107,2]
[420354311,1776019840563,-18056.26000002,0.000107,2]
[420354312,1776019840575,-8994.11514348,0.000107,2]
[420354313,1776019840609,-705.60285014,0.000107,2]
[420354316,1776019840643,-781.06101906,0.000107,2]
[420354318,1776019840655,-674.66537723,0.000107,2]
[420354321,1776019840671,-4413.77588023,0.000107,2]
[420354323,1776019840686,-292.28894791,0.000107,2]
[420354327,1776019840716,-1487.0,0.000107,2]
[420354348,1776019842955,-4838.001713,0.000107,2]
[420354349,1776019842984,-743.33980056,0.000107,2]
[420354350,1776019842999,-1030.1308482,0.000107,2]
[420354351,1776019843017,-1772.92596407,0.000107,2]
[420354352,1776019843034,-226705.80754114,0.000107,2]
[420354353,1776019843046,-4307.74967549,0.000107,2]
[420354354,1776019843061,-1036.41986991,0.000107,2]
[420354355,1776019843230,-764.86434579,0.000107,2]
[420354356,1776019843242,-985.41384815,0.000107,2]
[420354357,1776019843292,-139.4701867,0.000107,2]
[420354358,1776019843313,-558.22750423,0.000107,2]
[420354359,1776019843325,-2509.07303865,0.000107,2]
[420354360,1776019843360,-2343.68669856,0.000107,2]
[420354361,1776019843371,-2486.60152622,0.000107,2]
[420354362,1776019843409,-6608.52846166,0.000107,2]
[420354363,1776019843426,-18314.47348714,0.000107,2]
[420354375,1776019845850,-602.66006524,0.000107,2]
[420354376,1776019845874,-40419.6902768,0.000107,2]
[420354377,1776019846345,-11739.86978487,0.000107,2]
[420354378,1776019846381,-6106.53102283,0.000107,2]
[420354391,1776020748370,-424.90041936,9.839e-05,3]
[420354394,1776020836448,-75.09958064,9.839e-05,3]
[420354395,1776020836474,-81.43641492,9.913e-05,2]
[420354396,1776020839097,-192.39670928,9.913e-05,2]
[420354397,1776020946087,-300.0,9.654e-05,2]
[420354398,1776020946117,-300.0,9.654e-05,2]
[420354399,1776020946139,-307.2584612,9.655e-05,2]
[420354400,1776020964109,-490.0,9.654e-05,2]
[420354401,1776020973139,-582.13753993,9.654e-05,2]
[420354409,1776021032055,-127.86246007,9.654e-05,2]
[420354410,1776021032065,-223.66753743,9.654e-05,2]
[420354411,1776021032110,-976.33246257,9.654e-05,2]
[420354412,1776021032121,-289.0,9.654e-05,2]
[420354413,1776021032151,-3165.77084743,9.655e-05,2]
[420354414,1776021032168,-478.50807902,9.655e-05,2]
[420354415,1776021032287,-11600.82261235,9.655e-05,2]
[420354416,1776021032305,-2000.0,9.815e-05,2]
[420354417,1776021032322,-250.0,9.864e-05,2]
[420354418,1776021032340,-206.0868758,9.913e-05,2]
[420354419,1776021032382,-250.0,9.95e-05,2]
[420354420,1776021032414,-1621.7,0.0001,2]
[420354421,1776021032424,-150.0,0.0001,2]
[420354422,1776021032470,-324.34,0.0001,2]
[420354423,1776021032481,-162.18,0.0001,2]
[420354424,1776021032502,-275.55054349,0.0001,2]
[420354425,1776021032531,-275.55054348,0.00010025,2]
[420354426,1776021032542,-150.0,0.00010029,2]
[420354427,1776021032560,-36023.61402517,0.0001003,2]
[420354428,1776021032570,-500.21459105,0.00010073,2]
[420354430,1776021032580,-1924.95,0.00010111,2]
[420354431,1776021032593,-275.55054348,0.00010149,2]
[420354434,1776021032606,-150.99,0.00010249,2]
[420354436,1776021032616,-5386.61754896,0.00010249,2]
[420354438,1776021032629,-440.0,0.00010249,2]
[420354441,1776021032657,-603.84235597,0.00010249,2]
[420354458,1776021032875,-3569.53009507,0.00010249,2]
[420354460,1776021032886,-9999.99,0.00010249,2]
[420354461,1776021032899,-150.99,0.00010249,2]
[420354462,1776021032913,-5969.06231929,0.00010249,2]
[420354463,1776021032946,-19030.92768071,0.00010249,2]
[420354464,1776021032955,-531.1,0.00010273,2]
[420354465,1776021032972,-668.08993756,0.00010375,2]
[420354466,1776021032982,-150.0,0.00010474,2]
[420354467,1776021032993,-150.0,0.00010486,2]
[420354468,1776021033003,-150.0,0.000105,2]
[420354469,1776021033025,-169.85754937,0.000106,2]
[420354470,1776021033035,-350.0,0.000106,2]
[420354471,1776021033045,-420.0,0.0001062,2]
[420354472,1776021033069,-1680.0,0.0001062,2]
[420354473,1776021033081,-424.024,0.00010658,2]
[420354474,1776021033093,-14734.62,0.00010685,2]
[420354475,1776021033104,-200.0,0.00010694,2]
[420354476,1776021033127,-151.0,0.00010694,2]
[420354477,1776021033137,-500.0,0.00010694,2]
[420354478,1776021033146,-151.0,0.00010694,2]
[420354479,1776021033156,-151.0,0.00010694,2]
[420354480,1776021033180,-151.0,0.00010694,2]
[420354481,1776021033190,-151.0,0.00010694,2]
[420354482,1776021033214,-151.0,0.00010694,2]
[420354483,1776021033226,-151.0,0.00010694,2]
[420354484,1776021033236,-151.0,0.00010694,2]
[420354485,1776021033262,-151.0,0.00010694,2]
[420354486,1776021033295,-151.0,0.00010694,2]
[420354487,1776021033335,-151.0,0.00010694,2]
[420354488,1776021033349,-151.0,0.00010694,2]
[420354489,1776021033360,-151.0,0.00010694,2]
[420354490,1776021033370,-151.0,0.00010694,2]
[420354491,1776021033390,-286.22971031,0.00010694,2]
[420354492,1776021033402,-500.0,0.00010698,2]
[420354493,1776021033414,-500.0,0.00010698,2]
[420354494,1776021033441,-500.0,0.00010698,2]
[420354495,1776021033451,-500.0,0.00010698,2]
[420354496,1776021033470,-500.0,0.00010698,2]
[420354497,1776021033494,-500.0,0.00010698,2]
[420354498,1776021033505,-500.0,0.00010698,2]
[420354499,1776021033530,-500.0,0.00010698,2]
[420354500,1776021033541,-500.0,0.00010698,2]
[420354501,1776021033555,-500.0,0.00010698,2]
[420354502,1776021033586,-500.0,0.00010698,2]
[420354503,1776021033596,-500.0,0.00010698,2]
[420354504,1776021033606,-500.0,0.00010698,2]
[420354505,1776021033627,-500.0,0.00010698,2]
[420354506,1776021033645,-500.0,0.00010698,2]
[420354507,1776021033660,-500.0,0.00010698,2]
[420354508,1776021033671,-500.0,0.00010698,2]
[420354509,1776021033691,-500.0,0.00010698,2]
[420354510,1776021033706,-500.0,0.00010698,2]
[420354511,1776021033728,-500.0,0.00010698,2]
[420354512,1776021033738,-500.0,0.00010698,2]
[420354513,1776021033760,-500.0,0.00010698,2]
[420354514,1776021033770,-500.0,0.00010698,2]
[420354515,1776021033783,-889.28189337,0.00010698,2]
[420354516,1776021033804,-889.28189337,0.00010698,2]
[420354517,1776021033813,-889.28189337,0.00010698,2]
[420354518,1776021033835,-889.28189337,0.00010698,2]
[420354519,1776021033861,-889.28189337,0.00010698,2]
[420354520,1776021033884,-889.28189337,0.00010698,2]
[420354521,1776021033894,-889.28189337,0.00010698,2]
[420354522,1776021033904,-889.28189337,0.00010698,2]
[420354523,1776021033914,-889.28189337,0.00010698,2]
[420354524,1776021033927,-889.28189337,0.00010698,2]